{"text_format":"1","workbook":"xlsx","n_sheets":1,"sheets":["RKL Information Template"],"not_rendered":{"charts":0,"images":0,"macros":1,"external_links":0,"defined_names":0,"comments":0,"pivot_tables":0},"unopened":[],"bounds":{"document_bytes":16777216,"sheet_cells":100000,"rows_first":2000,"rows_last":500,"rows_between":2000,"halvings":0,"cell_chars":16384,"cell_head_chars":4096},"cells_cut":0,"cells_raw":0,"read":"whole","date_system":"1900"}

{"sheet":"RKL Information Template","index":0,"n_rows":31,"n_cols":9,"rows_kept":31,"cut":false,"hidden":false,"merged":[[6,1,6,2],[6,4,6,5],[6,7,6,8],[2,1,2,2],[3,1,3,2],[4,1,4,2]]}
["RKL Site Information"]
[]
["Site #:"]
["Tech #:"]
["Tech Name:"]
[]
[null,"Required For RKL",null,null,"PCI Site Compliance",null,null,"Global info"]
["#","PPN","Hash",null,"Card Reader","Keypad",null,"Term ID","Serial"]
[1,null,null,null,null,null,null,{"$f":"IF($B9=\"\",\"\",\"PD\"&$B$3&CHAR(64+$A9))","v":""},{"$f":"IF($B9=\"\",\"\",\"BA\"&RIGHT($B9,6))","v":""}]
[2,null,null,null,null,null,null,{"$f":"IF($B10=\"\",\"\",\"PD\"&$B$3&CHAR(64+$A10))","v":""},{"$f":"IF($B10=\"\",\"\",\"BA\"&RIGHT($B10,6))","v":""}]
[3,null,null,null,null,null,null,"",""]
[4,null,null,null,null,null,null,"",""]
[5,null,null,null,null,null,null,"",""]
[6,null,null,null,null,null,null,"",""]
[7,null,null,null,null,null,null,"",""]
[8,null,null,null,null,null,null,"",""]
[9,null,null,null,null,null,null,"",""]
[10,null,null,null,null,null,null,"",""]
[11,null,null,null,null,null,null,"",""]
[12,null,null,null,null,null,null,"",""]
[13,null,null,null,null,null,null,"",""]
[14,null,null,null,null,null,null,"",""]
[15,null,null,null,null,null,null,"",""]
[16,null,null,null,null,null,null,"",""]
[17,null,null,null,null,null,null,"",""]
[18,null,null,null,null,null,null,"",""]
[]
["IF OUTLOOK IS NOT USED FOR E-MAILS OR YOU ARE USING YOUR ANDROID DEVICE"]
["YOU MUST MANUALLY SAVE AND SEND THE E-MAIL TO rklpkld@nee.ca"]
[]
["Email to","rklpkld@nee.ca"]